bitfinex/quotes_BTCUSD_20220212
["timestamp","ask_amount","ask_price","bid_price","bid_amount"]
[1644664832835,0.04,42033.0,42022.0,0.22566679]
[1644664833235,0.0001,42037.0,42022.0,0.22566679]
[1644664833431,0.0001,42037.0,42036.0,0.08204195]
[1644664833633,0.23446971,42037.0,42036.0,0.08204195]
[1644664834736,0.0001,42037.0,42036.0,0.08204195]
[1644664834937,0.188497,42049.0,42036.0,0.08204195]
[1644664834938,0.0001,42039.0,42036.0,0.08204195]
[1644664835135,0.01,42049.0,42036.0,0.08204195]
[1644664835381,0.01,42049.0,42037.0,0.24787495]
[1644664835681,0.15849408,42049.0,42048.0,0.26012217]
[1644664835881,0.19859408,42049.0,42048.0,0.31012217]
[1644664836080,0.19859408,42049.0,42037.0,0.24672762]
[1644664836081,0.04105401,42046.0,42037.0,0.24672762]
[1644664836281,0.08105401,42046.0,42037.0,0.24672762]
[1644664836481,0.22579,42044.0,42036.0,0.19]
[1644664836688,0.22579,42044.0,42013.0,0.1]
[1644664836689,0.333355,42036.0,42010.0,0.033]
[1644664836887,0.333355,42017.0,42012.0,0.00043692]
[1644664837082,0.34286379,42017.0,42016.0,0.07953655]
[1644664837282,0.34286379,42017.0,42015.0,0.08946647]
[1644664837283,0.42666379,42017.0,42015.0,0.08946647]
[1644664837681,0.42666379,42017.0,42012.0,0.23490631]
[1644664837682,0.55,42016.0,42012.0,0.23490631]
[1644664837880,0.0438,42015.0,42013.0,0.08676303]
[1644664838082,0.04,42014.0,42013.0,0.08676303]
[1644664838483,0.23436971,42014.0,42013.0,0.08676303]
[1644664838684,0.099526,42021.0,42013.0,0.08676303]
[1644664838884,0.14849408,42017.0,42013.0,0.08676303]
[1644664839145,0.373355,42016.0,42013.0,0.08676303]
[1644664839546,0.373355,42016.0,42010.0,0.033]
[1644664839547,0.727155,42015.0,42010.0,0.033]
[1644664839738,0.04,42011.0,42010.0,0.033]
[1644664839938,0.0838,42011.0,42010.0,0.033]
[1644664840437,0.0838,42011.0,42010.0,0.25167703]
[1644664840438,0.0438,42011.0,42010.0,0.25167703]
[1644664840639,0.0438,42011.0,42010.0,0.32097719]
[1644664841438,0.377155,42011.0,42010.0,0.06930016]
[1644664841643,0.377155,42011.0,42005.0,0.05]
[1644664841644,0.333355,42010.0,42005.0,0.05]
[1644664841841,0.0438,42009.0,42008.0,0.00043676]
[1644664842440,0.23229408,42009.0,42008.0,0.00043676]
[1644664842640,0.0838,42009.0,42008.0,0.00043676]
[1644664842883,0.0838,42009.0,42007.0,0.07020042]
[1644664843085,0.0438,42009.0,42007.0,0.07020042]
[1644664843287,0.00043667,42015.0,42008.0,0.7]
[1644664843685,0.00043667,42015.0,42006.0,0.25942597]
[1644664843886,0.30043667,42015.0,42006.0,0.25942597]
[1644664844085,0.04,42016.0,42004.0,0.0021]
[1644664844086,0.04,42007.0,42004.0,0.0021]
[1644664844286,0.48184908,42006.0,42004.0,0.0021]
[1644664845287,0.48184908,42006.0,42004.0,0.08764555]
[1644664846089,0.04,42007.0,42004.0,0.08764555]
[1644664846289,0.333355,42006.0,42004.0,0.08764555]
[1644664846735,0.333355,42006.0,42004.0,0.32764555]
[1644664847138,0.48184908,42006.0,42004.0,0.32764555]
[1644664847339,0.14849408,42006.0,42004.0,0.32764555]
[1644664847533,0.48184908,42006.0,42004.0,0.32764555]
[1644664847735,0.48184908,42006.0,42004.0,0.2421]
[1644664848335,0.48184908,42006.0,42003.0,0.0004261]
[1644664848336,0.48184908,42006.0,41998.0,0.1696198]
[1644664848635,0.059544,42009.0,41998.0,0.08036249]
[1644664848839,0.059544,42009.0,41999.0,0.28702307]
[1644664848840,0.333355,42008.0,41999.0,0.28702307]
[1644664849035,0.333355,42008.0,41997.0,0.20465914]
[1644664849036,0.04,42002.0,41997.0,0.20465914]
[1644664849236,0.059544,42009.0,41998.0,0.29949786]
[1644664849436,0.333355,42007.0,41998.0,0.29949786]
[1644664850037,0.333355,42007.0,42004.0,0.21655606]
[1644664850237,0.333355,42007.0,42004.0,0.0247417]
[1644664850238,0.333355,42005.0,42004.0,0.0247417]
[1644664851096,0.333355,42005.0,41997.0,0.29141768]
[1644664851298,0.333355,42004.0,41996.0,0.24575772]
[1644664851497,0.059544,42009.0,42003.0,0.07602257]
[1644664852198,0.04,42006.0,42003.0,0.07602257]
[1644664852798,0.04,42006.0,42003.0,0.32479653]
[1644664852997,0.059544,42009.0,42003.0,0.32479653]
[1644664853200,0.333355,42007.0,42003.0,0.32479653]
[1644664853398,0.059544,42009.0,42003.0,0.32479653]
[1644664854542,0.18893022,42010.0,42003.0,0.32479653]
[1644664854543,0.00043614,42010.0,42003.0,0.32479653]
[1644664854743,0.12082332,42016.0,42004.0,0.28847197]
[1644664854744,0.119079,42016.0,42004.0,0.28847197]
[1644664854946,0.18849408,42018.0,42014.0,0.08780724]
[1644664855243,0.18849408,42015.0,42004.0,0.28847197]
[1644664855540,0.119056,42024.0,42004.0,0.54457425]
[1644664855541,0.04,42017.0,42004.0,0.54457425]
[1644664855741,0.04,42014.0,42004.0,0.54457425]
[1644664855941,0.04,42014.0,42012.0,0.20615241]
[1644664856138,0.19954547,42021.0,42012.0,0.20615241]
[1644664856340,0.00043558,42013.0,42012.0,0.20615241]
[1644664856542,0.00043558,42013.0,42012.0,0.27698155]
[1644664856742,0.00043558,42013.0,42012.0,0.20615241]
[1644664857244,0.04,42027.0,42012.0,0.20615241]
[1644664857245,0.19954547,42027.0,42012.0,0.20615241]
[1644664857442,0.00043557,42015.0,42012.0,0.20615241]
[1644664857884,0.00043557,42015.0,42013.0,0.07006669]
[1644664858489,0.56024547,42029.0,42025.0,0.06800729]
[1644664858688,0.19964547,42029.0,42025.0,0.06800729]
[1644664858885,0.19964547,42030.0,42025.0,0.06800729]
[1644664859087,0.18849408,42026.0,42025.0,0.06800729]
[1644664859287,0.36847083,42031.0,42025.0,0.06800729]
[1644664859288,0.19954547,42028.0,42025.0,0.06800729]
[1644664859486,0.23964547,42029.0,42025.0,0.06800729]
[1644664859686,0.059517,42028.0,42025.0,0.06800729]
[1644664860491,0.18849408,42026.0,42025.0,0.06800729]
[1644664860688,0.00056445,42024.0,42022.0,0.26525984]
[1644664861092,0.00056445,42024.0,42023.0,0.08559521]
[1644664862539,0.00056445,42024.0,42023.0,0.37145439]
[1644664862740,0.00056445,42024.0,42023.0,0.08559521]
[1644664865690,0.00056445,42024.0,42023.0,0.33216608]
[1644664866287,0.00056445,42024.0,42023.0,0.65023283]
[1644664866687,0.00056445,42024.0,42023.0,0.6566361]
[1644664866889,0.00056445,42024.0,42023.0,0.7566361]
[1644664867189,0.00056445,42024.0,42023.0,0.7666361]
[1644664867388,0.00056445,42024.0,42023.0,0.6566361]
[1644664868389,0.00056445,42024.0,42023.0,0.7566361]
[1644664868588,0.00056445,42024.0,42023.0,0.6566361]
[1644664868788,0.00056445,42024.0,42023.0,0.8066361]
[1644664869006,0.00056445,42024.0,42023.0,0.6566361]
[1644664869250,0.00056445,42024.0,42023.0,0.8066361]
[1644664870250,0.00056445,42024.0,42023.0,0.8993561]
[1644664870455,0.00056445,42024.0,42023.0,0.61868608]
[1644664871351,0.00056445,42024.0,42023.0,0.37596608]
[1644664871953,0.00056445,42024.0,42023.0,0.42596608]
[1644664872751,0.00056445,42024.0,42023.0,0.69693857]
[1644664872989,0.00056445,42024.0,42023.0,0.84693857]
[1644664873395,0.00056445,42024.0,42023.0,0.69693857]
[1644664873789,0.00056445,42024.0,42023.0,0.79693857]
[1644664874794,0.00056445,42024.0,42023.0,0.69693857]
[1644664875996,0.00056445,42024.0,42023.0,0.79693857]
[1644664876194,0.00056445,42024.0,42023.0,1.03693857]
[1644664876835,0.00056445,42024.0,42023.0,1.08693857]
[1644664877234,0.00056445,42024.0,42023.0,1.03693857]
[1644664877436,0.00056445,42024.0,42023.0,0.93693857]
[1644664877840,0.33391945,42024.0,42023.0,0.32559521]
[1644664878041,0.33391945,42024.0,42013.0,0.05]
[1644664878042,0.04634686,42022.0,42013.0,0.05]
[1644664878238,0.04634686,42022.0,42014.0,0.08041737]
[1644664878436,0.00993984,42009.0,42008.0,0.17851065]
[1644664878641,0.00993984,42009.0,42008.0,0.25893381]
[1644664878840,0.00993984,42009.0,42008.0,0.46509859]
[1644664879037,0.04634686,42022.0,42009.0,0.75]
[1644664879239,0.04634686,42022.0,42015.0,0.20856193]
[1644664879437,0.04634686,42022.0,42016.0,0.06855887]
[1644664879839,0.08634686,42022.0,42016.0,0.06855887]
[1644664880040,0.04634686,42022.0,42016.0,0.06855887]
[1644664880237,0.04634686,42022.0,42020.0,0.24879027]
[1644664880487,0.08634686,42022.0,42016.0,0.06855887]
[1644664881091,0.04634686,42022.0,42016.0,0.06855887]
[1644664881490,0.04634686,42022.0,42017.0,0.25851885]
[1644664881791,0.04634686,42022.0,42016.0,0.06855887]
[1644664881792,0.04,42020.0,42016.0,0.06855887]
[1644664881993,0.04,42019.0,42003.0,0.11904678]
[1644664882192,0.059535,42016.0,41999.0,0.1]
[1644664882390,0.04,42019.0,41999.0,0.01]
[1644664882589,0.2992684,42019.0,42007.0,0.19624019]
[1644664882789,0.44776248,42019.0,42007.0,0.19624019]
[1644664882989,0.18849408,42019.0,42018.0,0.0858293]
[1644664883189,0.18849408,42019.0,42007.0,0.19624019]
[1644664883489,0.04,42019.0,42007.0,0.24624019]
[1644664883893,0.04,42019.0,42015.0,0.23767148]
[1644664884338,0.04,42019.0,42016.0,0.074822]
[1644664885139,0.04634686,42022.0,42016.0,0.074822]
[1644664885539,0.14849408,42017.0,42016.0,0.074822]
[1644664885740,0.04,42018.0,42016.0,0.074822]
[1644664886543,0.04,42018.0,42016.0,0.314822]
[1644664887244,0.059528,42020.0,42016.0,0.314822]
[1644664888089,0.04,42019.0,42016.0,0.314822]
[1644664888289,0.03973002,42019.0,42016.0,0.314822]
[1644664888693,0.04634686,42022.0,42016.0,0.314822]
[1644664889095,0.04634686,42022.0,42016.0,0.364822]
[1644664889290,0.03973002,42019.0,42016.0,0.364822]
[1644664889693,0.1882241,42019.0,42016.0,0.364822]
[1644664889893,0.03973002,42019.0,42016.0,0.364822]
[1644664890093,0.14849408,42017.0,42016.0,0.364822]
[1644664890497,0.03973002,42019.0,42016.0,0.364822]
[1644664890697,0.14849408,42017.0,42016.0,0.364822]
[1644664890896,0.1882241,42019.0,42016.0,0.364822]
[1644664891296,0.1882241,42019.0,42016.0,0.29]
[1644664891297,0.14849408,42017.0,42016.0,0.29]
[1644664891748,0.43379293,42017.0,42016.0,0.24]
[1644664891943,0.6339216,42017.0,42016.0,0.24]
[1644664892142,0.89533589,42017.0,42016.0,0.24]
[1644664892339,0.69520722,42017.0,42016.0,0.24]
[1644664893141,0.69520722,42017.0,42016.0,0.29]
[1644664893741,0.69520722,42017.0,42016.0,0.289783]
[1644664893939,0.67845376,42017.0,42016.0,0.289783]
[1644664894641,0.97253479,42017.0,42016.0,0.289783]
[1644664894842,0.42582165,42017.0,42016.0,0.289783]
[1644664895041,0.75917665,42017.0,42016.0,0.289783]
[1644664895790,0.71806617,42017.0,42016.0,0.289783]
[1644664895989,0.72270809,42017.0,42016.0,0.289783]
[1644664896389,0.47242706,42017.0,42016.0,0.289783]
[1644664896589,0.80578206,42017.0,42016.0,0.289783]
[1644664896791,0.17554062,42017.0,42016.0,0.289783]
[1644664897592,0.42582165,42017.0,42016.0,0.289783]
[1644664897790,0.17554062,42017.0,42016.0,0.289783]
[1644664897991,0.12290715,42010.0,42004.0,0.05]
[1644664898293,0.12290715,42010.0,41992.0,0.36907322]
[1644664898294,0.03973002,42007.0,41999.0,0.19914216]
[1644664898795,0.13174062,42009.0,41994.0,0.20234608]
[1644664898796,0.333355,42006.0,41994.0,0.20234608]
[1644664898996,0.333355,42006.0,41993.0,0.0011]
[1644664898997,0.03973002,41995.0,41993.0,0.0011]
[1644664899247,0.13174062,41994.0,41993.0,0.0011]
[1644664901043,0.25554062,41994.0,41993.0,0.0011]
[1644664901449,0.55540613,41994.0,41993.0,0.0011]
[1644664901646,0.25554062,41994.0,41993.0,0.0011]
[1644664901847,0.53842918,41994.0,41993.0,0.0011]
[1644664902048,0.25554062,41994.0,41993.0,0.0011]
[1644664902249,0.53792434,41994.0,41993.0,0.0011]
[1644664902747,0.25554062,41994.0,41993.0,0.0011]
[1644664903588,0.21174062,41994.0,41993.0,0.0011]
[1644664903787,0.49328788,41994.0,41993.0,0.0011]
[1644664905191,0.21174062,41994.0,41993.0,0.0011]
[1644664908454,0.20677137,41982.0,41972.0,0.0032]
[1644664908655,0.20677137,41982.0,41981.0,0.3005817]
[1644664909453,0.20677137,41982.0,41981.0,0.2955817]
[1644664909855,0.20677137,41982.0,41981.0,0.33633408]
[1644664910892,0.20677137,41982.0,41981.0,0.2471]
[1644664912094,0.20677137,41982.0,41981.0,0.3160804]
[1644664915647,0.10677137,41982.0,41981.0,0.3160804]
[1644664916046,0.00041001,41985.0,41982.0,0.75]
[1644664916247,0.00041001,41985.0,41982.0,1.1]
[1644664916447,0.21562259,42000.0,41994.0,0.18962563]
[1644664916645,0.3801,42001.0,41994.0,0.18962563]
[1644664916646,0.3801,42001.0,41999.0,0.07713725]
[1644664916845,0.03973002,42004.0,41999.0,0.07713725]
[1644664917646,0.03973002,42001.0,41999.0,0.07713725]
[1644664918091,0.04326834,41997.0,41995.0,0.36079544]
[1644664918295,0.04326834,41997.0,41995.0,0.35795645]
[1644664918490,0.04326834,41997.0,41995.0,0.0702894]
[1644664919194,0.04326834,41997.0,41995.0,0.54781505]
[1644664919390,0.04326834,41997.0,41996.0,0.28659695]
[1644664919590,0.04326834,41997.0,41996.0,0.49115427]
[1644664919792,0.00041009,41998.0,41997.0,0.75]
[1644664919992,0.03973002,42007.0,41997.0,1.08015962]
[1644664920190,0.119093,42009.0,41997.0,1.08015962]
[1644664920394,0.03973002,42002.0,41997.0,1.08015962]
[1644664920793,0.03973002,42002.0,41997.0,0.33015962]
[1644664920990,0.03973002,42002.0,41996.0,0.24]
[1644664921192,0.03973002,41997.0,41996.0,0.24]
[1644664921393,0.13174062,41999.0,41996.0,0.24]
[1644664921642,0.03973002,41997.0,41996.0,0.24]
[1644664923136,0.03973002,41997.0,41996.0,0.762974]
[1644664923536,0.03973002,41997.0,41996.0,0.4745006]
[1644664923738,0.03973002,41997.0,41996.0,0.4742006]
[1644664923936,0.059552,42002.0,41996.0,0.4742006]
[1644664923937,0.00040969,41999.0,41996.0,0.4742006]
[1644664924740,0.25028103,42009.0,41996.0,0.4742006]
[1644664924741,0.12290715,42010.0,41997.0,0.75]
[1644664924942,0.12290715,42010.0,42002.0,0.07803397]
[1644664925140,0.12290715,42010.0,42003.0,0.21680484]
[1644664925591,0.12290715,42010.0,42008.0,0.21233094]
[1644664925788,0.00171724,42013.0,42008.0,0.21233094]
[1644664925789,0.00171724,42013.0,42009.0,0.82960963]
[1644664925989,0.00171724,42013.0,42009.0,1.12960963]
[1644664926187,0.04634686,42022.0,42009.0,0.97960963]
[1644664926188,0.20035691,42021.0,42009.0,0.97960963]
[1644664926487,0.0001,42020.0,42009.0,0.97960963]
[1644664926686,0.03983002,42020.0,42009.0,0.97960963]
[1644664926888,0.24008693,42020.0,42016.0,0.07341469]
[1644664927087,0.04634686,42022.0,42008.0,0.21233094]
[1644664927088,0.08997265,42015.0,42008.0,0.21233094]
[1644664927391,0.03973002,42014.0,42008.0,0.0438]
[1644664927591,0.03973002,42014.0,42008.0,0.0388]
[1644664928092,0.03973002,42014.0,42009.0,0.26704695]
[1644664928388,0.03973002,42014.0,42010.0,0.20345016]
[1644664928788,0.0004383,42014.0,42010.0,0.20345016]
[1644664929678,0.08997265,42015.0,42010.0,0.49241044]
[1644664929875,0.0004383,42014.0,42010.0,0.64241044]
[1644664930074,0.0004383,42014.0,42010.0,0.49241044]
[1644664930878,0.08997265,42015.0,42010.0,0.20345016]
[1644664931078,0.08997265,42015.0,42011.0,0.28997373]
[1644664931382,0.0894467,42015.0,42014.0,0.75]
[1644664931581,0.0894467,42015.0,42014.0,0.84107]
[1644664931779,0.0894467,42015.0,42014.0,0.19107]
[1644664931978,0.0894467,42015.0,42014.0,0.09107]
[1644664931979,0.0744467,42015.0,42014.0,0.09107]
[1644664932580,0.0744467,42015.0,42014.0,0.33107]
[1644664933696,0.0744467,42015.0,42014.0,0.33007]
[1644664935198,0.0744467,42015.0,42014.0,0.38007]
[1644664936299,0.25028103,42020.0,42015.0,0.75]
[1644664936501,0.35039344,42024.0,42020.0,0.07152982]
[1644664936502,0.0319285,42024.0,42020.0,0.07152982]
[1644664936755,0.0001,42029.0,42020.0,0.16532982]
[1644664936954,0.00034266,42029.0,42020.0,0.16532982]
[1644664937161,0.0001,42029.0,42020.0,0.1755998]
[1644664937353,0.00024266,42029.0,42024.0,0.22537541]
[1644664937554,0.00024266,42030.0,42025.0,0.0438]
[1644664937754,0.00024266,42032.0,42029.0,0.23508318]
[1644664937954,0.0001,42033.0,42022.0,0.2285992]
[1644664937955,0.00849654,42027.0,42022.0,0.2285992]
[1644664938253,0.00849654,42027.0,42025.0,0.20706296]
[1644664938455,0.00849654,42027.0,42021.0,0.05216887]
[1644664938456,0.00849654,42027.0,42023.0,0.21757037]
[1644664938653,0.00849654,42027.0,42021.0,0.06578911]
[1644664938855,0.00849654,42027.0,42022.0,0.22801866]
[1644664939658,0.00893475,42027.0,42022.0,0.22801866]
[1644664939856,0.00893475,42027.0,42026.0,0.25804411]
[1644664940704,0.00849654,42027.0,42026.0,0.25804411]
[1644664941306,0.00849654,42027.0,42026.0,0.55737958]
[1644664941506,0.00849654,42027.0,42026.0,0.25804411]
[1644664943008,0.00849654,42027.0,42026.0,0.49804411]
[1644664943309,0.00042007,42029.0,42028.0,0.08152637]
[1644664944149,0.00024266,42032.0,42028.0,0.08152637]
[1644664944346,0.00042006,42031.0,42028.0,0.08152637]
[1644664945345,0.0001,42041.0,42028.0,0.08152637]
[1644664945346,0.30069759,42045.0,42031.0,0.75]
[1644664945548,0.28994856,42048.0,42032.0,0.37350213]
[1644664945752,0.28994856,42048.0,42033.0,0.0438]
[1644664945753,0.00167998,42038.0,42033.0,0.0438]
[1644664945948,0.00167998,42038.0,42034.0,0.01026998]
[1644664946145,0.00167998,42038.0,42035.0,0.0438]
[1644664946348,0.00167998,42038.0,42036.0,0.78578795]
[1644664946550,0.20019303,42050.0,42039.0,0.76825938]
[1644664946750,0.01,42059.0,42048.0,0.01026998]
[1644664946949,0.00110338,42050.0,42049.0,0.12426587]
[1644664947147,0.00110338,42050.0,42049.0,0.17426587]
[1644664947548,0.00110338,42050.0,42049.0,0.55833719]
[1644664947746,0.01,42059.0,42049.0,0.55833719]
[1644664947995,0.01,42059.0,42058.0,0.07923573]
[1644664948195,0.01,42059.0,42058.0,0.05124012]
[1644664949697,0.01,42059.0,42056.0,0.0938]
[1644664949698,0.04973002,42059.0,42056.0,0.0438]
[1644664949899,0.333355,42055.0,42044.0,0.0438]
[1644664950095,0.03973002,42051.0,42044.0,0.0438]
[1644664950295,0.04973002,42059.0,42044.0,0.0438]
[1644664950497,0.04973002,42059.0,42045.0,0.29179479]
[1644664950697,0.04973002,42059.0,42051.0,0.25932294]
[1644664950698,0.00044007,42052.0,42051.0,0.25932294]
[1644664950895,0.00044007,42052.0,42051.0,0.50712134]
[1644664951295,0.00044007,42052.0,42051.0,0.35312294]
[1644664951501,0.0101,42059.0,42051.0,0.35312294]
[1644664951744,0.00044006,42054.0,42052.0,0.07831585]
[1644664952346,0.00034006,42054.0,42052.0,0.07831585]
[1644664952745,0.0101,42059.0,42053.0,0.34229706]
[1644664952946,0.0101,42059.0,42054.0,0.0438]
[1644664952947,0.01,42059.0,42054.0,0.0438]
[1644664953145,0.0001,42066.0,42055.0,0.8917]
[1644664953346,0.04983002,42069.0,42062.0,0.18650731]
[1644664953546,0.18147064,42069.0,42063.0,0.0878713]
[1644664953746,0.0001,42068.0,42063.0,0.1378713]
[1644664954147,0.04973002,42069.0,42063.0,0.1378713]
[1644664954344,0.005,42069.0,42063.0,0.42723403]
[1644664954545,0.005,42069.0,42063.0,0.1378713]
[1644664954855,0.005,42069.0,42063.0,0.3778713]
[1644664955045,0.005,42069.0,42063.0,0.66533916]
[1644664955246,0.005,42069.0,42063.0,0.72447361]
[1644664955497,0.0001,42076.0,42066.0,0.75]
[1644664955702,0.01,42079.0,42067.0,0.35]
[1644664955894,0.01,42079.0,42071.0,0.08840935]
[1644664956096,0.0001,42081.0,42072.0,0.1855]
[1644664956295,0.0001,42081.0,42072.0,0.2310378]
[1644664956494,0.05,42091.0,42081.0,0.25939565]
[1644664956495,0.13174062,42083.0,42081.0,0.25939565]
[1644664956701,0.059421,42094.0,42081.0,0.35026565]
[1644664956997,0.118842,42100.0,42082.0,0.0438]
[1644664957798,0.6150032,42103.0,42088.0,0.56766518]
[1644664957998,0.01,42099.0,42088.0,0.56766518]
[1644664958196,0.01,42099.0,42086.0,0.03835648]
[1644664958399,0.383355,42088.0,42086.0,0.03835648]
[1644664958597,0.333355,42088.0,42086.0,0.03835648]
[1644664958796,0.01,42099.0,42086.0,0.03835648]
[1644664958797,0.059433,42093.0,42086.0,0.03835648]
[1644664958996,0.359425,42092.0,42086.0,0.03835648]
[1644664959255,0.359425,42092.0,42087.0,0.06343589]
[1644664959256,0.2524452,42088.0,42087.0,0.06343589]
[1644664959850,0.2524452,42088.0,42087.0,0.05343589]
[1644664960052,0.2524452,42088.0,42087.0,0.05243589]
[1644664960452,0.2524452,42088.0,42075.0,0.05942481]
[1644664960658,0.2524452,42088.0,42072.0,0.00041409]
[1644664960659,0.059436,42085.0,42072.0,0.00041409]
[1644664960856,0.3,42084.0,42072.0,0.00041409]
[1644664961257,0.30833395,42084.0,42072.0,0.22231885]
[1644664961451,0.0004036,42080.0,42077.0,0.08949394]
[1644664961653,0.27981321,42080.0,42072.0,0.00040368]
[1644664961857,0.34845569,42080.0,42072.0,0.00040368]
[1644664962053,0.0600817,42080.0,42072.0,0.00040368]
[1644664962256,0.0004036,42080.0,42072.0,0.00040368]
[1644664962454,0.0002371,42086.0,42071.0,0.05]
[1644664962656,0.00040361,42078.0,42072.0,0.29720245]
[1644664962892,0.00040361,42078.0,42073.0,0.06650299]
[1644664963095,0.00040361,42078.0,42074.0,0.24468557]
[1644664963294,0.00040361,42078.0,42074.0,0.05]
[1644664963495,0.0002371,42080.0,42074.0,0.05]
[1644664963693,0.0002371,42084.0,42074.0,0.05]
[1644664963897,0.28216822,42085.0,42080.0,0.08888519]
[1644664964096,0.0002371,42084.0,42080.0,0.05]
[1644664964295,0.25249139,42077.0,42071.0,0.05]
[1644664964500,0.25249139,42077.0,42074.0,0.05]
[1644664964697,0.25249139,42077.0,42071.0,0.05]
[1644664965096,0.25249139,42077.0,42072.0,0.00040608]
[1644664965296,0.25272849,42077.0,42072.0,0.00040608]
[1644664965696,0.25022849,42077.0,42072.0,0.00040608]
[1644664966101,0.25022849,42077.0,42071.0,0.31702264]
[1644664966299,0.00042946,42077.0,42072.0,0.00042951]
[1644664967151,0.0002371,42083.0,42071.0,0.46702264]
[1644664967346,0.2185463,42082.0,42080.0,0.06617549]
[1644664968146,0.28989526,42085.0,42080.0,0.03978057]
[1644664968147,0.0002371,42084.0,42080.0,0.03978057]
[1644664968349,0.28965816,42085.0,42080.0,0.03978057]
[1644664968350,0.0002371,42085.0,42080.0,0.03978057]
[1644664968548,0.0002371,42084.0,42080.0,0.03978057]
[1644664968756,0.000429,42084.0,42080.0,0.03978057]
[1644664968951,0.000429,42084.0,42081.0,0.20962282]
[1644664969153,0.0006661,42084.0,42083.0,0.20743355]
[1644664969351,0.0006661,42084.0,42083.0,0.26959355]
[1644664969352,0.000429,42084.0,42083.0,0.26959355]
[1644664969549,0.01909085,42089.0,42083.0,0.36959355]
[1644664969550,0.0002371,42088.0,42083.0,0.36959355]
[1644664969753,0.0002371,42086.0,42083.0,0.2095]
[1644664969950,0.0004275,42086.0,42083.0,0.3095]
[1644664970400,0.0004275,42086.0,42083.0,0.1595]
[1644664970601,0.0004275,42086.0,42083.0,0.09734]
[1644664970807,0.0004275,42086.0,42069.0,0.3921]
[1644664970808,0.8,42084.0,42068.0,0.05]
[1644664971006,0.8,42084.0,42072.0,0.00042764]
[1644664971007,0.05,42077.0,42072.0,0.00042764]
[1644664971204,0.059448,42075.0,42072.0,0.00042764]
[1644664971603,0.0001,42074.0,42072.0,0.00042764]
[1644664971803,0.3,42083.0,42073.0,0.07010396]
[1644664971804,0.00023724,42076.0,42073.0,0.07010396]
[1644664972201,0.3,42083.0,42073.0,0.07010396]
[1644664972407,0.00023724,42082.0,42073.0,0.07010396]
[1644664972602,0.00023724,42083.0,42073.0,0.12010396]
[1644664972803,0.00023724,42085.0,42080.0,0.2013583]
[1644664973006,0.00023724,42085.0,42080.0,0.3740283]
[1644664973203,0.01909085,42089.0,42081.0,0.0438]
[1644664973402,0.00023724,42088.0,42081.0,0.0938]
[1644664973601,0.00023445,42085.0,42081.0,0.0938]
[1644664973804,0.00023445,42085.0,42081.0,0.0438]
[1644664974004,0.00023445,42085.0,42084.0,0.19045001]
[1644664974251,0.00023445,42085.0,42084.0,0.37829565]
[1644664974476,0.00023724,42088.0,42084.0,0.37829565]
[1644664974661,0.01909085,42089.0,42084.0,0.47829565]
[1644664974949,0.00023445,42087.0,42084.0,0.32829565]
[1644664975545,0.00023445,42087.0,42084.0,0.47829565]
[1644664975746,0.00023724,42088.0,42084.0,0.47829565]
[1644664975947,0.01909085,42089.0,42084.0,0.47829565]
[1644664976146,0.00047169,42088.0,42085.0,0.29625456]
[1644664976448,0.00093765,42094.0,42086.0,0.75]
[1644664976449,0.00023724,42091.0,42086.0,0.75]
[1644664976650,0.00023724,42088.0,42086.0,0.7938]
[1644664976851,0.00023724,42093.0,42087.0,0.0593996]
[1644664977047,0.00023724,42098.0,42088.0,0.22051982]
[1644664977247,0.01,42099.0,42088.0,0.27051982]
[1644664977453,0.00023724,42098.0,42093.0,0.25487396]
[1644664977650,0.01,42099.0,42094.0,0.08728631]
[1644664977651,0.0095,42099.0,42094.0,0.08728631]
[1644664977906,0.0095,42099.0,42084.0,0.66]
[1644664977907,0.05,42095.0,42084.0,0.66]
[1644664978111,0.05,42092.0,42084.0,0.24]
[1644664978306,0.0001,42094.0,42084.0,0.24]
[1644664978307,0.333355,42093.0,42084.0,0.24]
[1644664978504,0.0001,42092.0,42087.0,0.22918355]
[1644664978711,0.0001,42094.0,42087.0,0.12585583]
[1644664978907,0.00023724,42093.0,42088.0,0.06551901]
[1644664979107,0.0001,42094.0,42088.0,0.06551901]
[1644664979108,0.00033724,42094.0,42088.0,0.06551901]
[1644664979305,0.00023724,42098.0,42088.0,0.06551901]
[1644664979507,0.0095,42099.0,42088.0,0.06551901]
[1644664979708,0.20435008,42097.0,42088.0,0.06551901]
[1644664979909,0.0001,42096.0,42088.0,0.06551901]
[1644664980411,0.00033724,42096.0,42088.0,0.06551901]
[1644664980708,0.0001,42096.0,42088.0,0.06551901]
[1644664980908,0.00044489,42094.0,42088.0,0.06551901]
[1644664981108,0.059423,42093.0,42088.0,0.06551901]
[1644664981307,0.0001,42092.0,42088.0,0.06551901]
[1644664981750,0.05966024,42093.0,42088.0,0.01787961]
[1644664981751,0.05936024,42093.0,42088.0,0.01787961]
[1644664981948,0.19008083,42090.0,42088.0,0.01787961]
[1644664982349,0.00023738,42091.0,42088.0,0.01787961]
[1644664982551,0.00064789,42092.0,42088.0,0.01787961]
[1644664982752,0.00041051,42092.0,42088.0,0.01787961]
[1644664982952,0.26728513,42103.0,42088.0,0.01787961]
[1644664982953,0.333355,42094.0,42088.0,0.01787961]
[1644664983249,0.00027274,42092.0,42088.0,0.26822034]
[1644664983649,0.00027274,42092.0,42088.0,0.31822034]
[1644664984253,0.00023738,42092.0,42088.0,0.31822034]
[1644664984457,0.45,42091.0,42089.0,0.07850376]
[1644664985256,0.118865,42090.0,42084.0,0.15847961]
[1644664985700,0.00023738,42090.0,42084.0,0.15847961]
[1644664985900,0.05970474,42092.0,42084.0,0.15847961]
[1644664985901,0.00023738,42091.0,42084.0,0.15847961]
[1644664986103,0.05970474,42092.0,42084.0,0.15847961]
[1644664986303,0.00023738,42091.0,42084.0,0.20847961]
[1644664986501,0.05970474,42092.0,42084.0,0.20847961]
[1644664986502,0.2172371,42086.0,42084.0,0.20847961]
[1644664986701,0.28705178,42091.0,42084.0,0.20847961]
[1644664986901,0.00054456,42090.0,42085.0,0.06788461]
[1644664987117,0.00044456,42090.0,42085.0,0.06788461]
[1644664987303,0.00078194,42090.0,42085.0,0.06788461]
[1644664987702,0.00078194,42090.0,42084.0,0.20847961]
[1644664987703,0.00033738,42090.0,42084.0,0.20847961]
[1644664988202,0.26676775,42087.0,42084.0,0.20847961]
[1644664988403,0.0001,42086.0,42084.0,0.20847961]
[1644664988804,0.0001,42086.0,42085.0,0.08139665]
[1644664989005,0.0001,42086.0,42085.0,0.06655086]
[1644664989462,0.0001,42086.0,42084.0,0.20847961]